{"text_format":"3","workbook":"xlsx","n_sheets":5,"sheets":["general","SW-L","SW-R","Manually_operated","Obrázky"],"not_rendered":{"images":20,"defined_names":3,"comments":1},"read":"whole","date_system":"1900"}

{"sheet":"general","index":0,"n_rows":109,"n_cols":47,"rows_kept":109,"merged":[[1,20,2,27],[3,23,3,27],[4,23,4,27],[5,23,5,27],[6,9,6,11],[6,16,6,17],[6,23,6,27],[8,4,8,5],[8,16,8,17],[9,16,9,17],[11,2,20,2],[12,18,15,18],[16,18,18,18],[17,19,20,19],[19,8,20,16],[21,2,22,2],[23,2,27,2],[25,18,26,18],[26,8,27,15],[30,23,31,27],[35,23,36,25],[38,23,39,25],[42,23,43,27],[46,17,47,27],[49,17,50,27],[55,12,55,15],[55,17,55,18],[55,19,55,20],[55,21,55,22],[55,23,55,24],[56,17,56,18],[56,19,56,20],[56,21,56,22],[56,23,56,24],[57,17,58,20],[57,21,58,27],[58,13,58,15],[59,21,60,27],[61,21,61,24],[61,26,61,27],[62,21,62,24],[62,26,62,27]]}
[{"$nulls":29},"č.jaz.",{"$f":"VLOOKUP(E5,AD3:AE11,2,FALSE)","v":8},null,"SVYHLEDAT","CZ","EN","DE","PL","FR","NL","EST","FIN","RU",{"$nulls":4},{"$f":"$AG$93","v":"manuaalisesti"}]
[{"$nulls":20},{"$f":"VLOOKUP(AG10,AG2:AR85,$AE$1+1,FALSE)","v":"SUORANOSTO (VL-T)"},{"$nulls":8},"Jazyk","číslo",null,{"$f":"VLOOKUP(AH2,AH2:AR85,$AE$1,FALSE)","v":"Valitse kieli:"},"Zvolit jazyk: ","Select a language:","Wählen Sie eine Sprache","Wybierz język","Sélectionner une langue","Kies een taal:","Valige keel","Valitse kieli:","Выберите язык:",{"$nulls":4},{"$f":"$AG$99","v":"sähkömoottori vasemmalla"}]
[null,"Zvol jazyk:",{"$nulls":5},{"$f":"VLOOKUP(AG3,AG2:AR85,$AE$1+1,FALSE)","v":"Oviaukon leveys"},null,null,"mm",{"$nulls":18},"CZ",1,null,{"$f":"VLOOKUP(AH3,AH3:AR86,$AE$1,FALSE)","v":"Oviaukon leveys"},"Šířka otvoru:","Opening width","Lichte Breite","Szerokość otworu","LARGEUR DE BAIE","Dagmaat breedte","Ava laius","Oviaukon leveys","Ширина проема",{"$nulls":4},{"$f":"$AG$98","v":"sähkömoottori oikealla"}]
[null,"Select a language:",{"$nulls":9},{"$f":"VLOOKUP(AH88,AH88:AR164,$AE$1,FALSE)","v":"\nTäytä kentät, jotka on merkitty värillä!"},{"$nulls":11},{"$f":"VLOOKUP(AG13,AG2:AR85,$AE$1+1,FALSE)","v":"Max. W x H 5000 x 5500 max 25 m2"},{"$nulls":5},"EN",2,null,"Oviaukon korkeus","Výška otvoru: ","Opening height","Lichte Höhe","Wysokość otworu","HAUTEUR DE BAIE","Dagmaat hoogte","Ava kõrgus","Oviaukon korkeus","Высота проема",{"$nulls":4},{"$f":"$AG$95","v":"ketjukäyttöinen - vasen"}]
[null,"Wählen Sie eine Sprache:",null,null,"FIN",null,null,{"$f":"VLOOKUP(AG4,AG2:AR85,$AE$1+1,FALSE)","v":"Oviaukon korkeus"},null,null,"mm",{"$nulls":12},{"$f":"VLOOKUP(AG11,AG2:AR85,$AE$1+1,FALSE)","v":"jouset ovipalkkin päällä"},{"$nulls":5},"DE",3,null,"SISÄLTÄPÄIN KUVATTUNA","POHLED ZEVNITŘ","INTERIOR VIEW","INNENANSICHT","Widok od środka","VUE INTERIEURE","BINNENAANZICHT","seestvaade","SISÄLTÄPÄIN KUVATTUNA","Вид изнутри",{"$nulls":4},{"$f":"$AG$96","v":"ketjukäyttöinen - oikea"}]
[null,"Wybierz język:",{"$nulls":21},{"$f":"VLOOKUP(AG12,AG2:AR85,$AE$1+1,FALSE)","v":"Lamelli 40/80mm"},{"$nulls":5},"PL",4,null,"LEIKKAUS A-A","ŘEZ A-A","SECTION A-A","DURCHSCHNITT A-A","Przekrój A-A","COUPE A-A","DOORSNEDE A-A","vaade A-A","LEIKKAUS A-A","Разрез А-А"]
[null,"Sélectionner une langue:",{"$nulls":5},{"$f":"VLOOKUP(AG92,AG4:AR92,$AE$1+1,FALSE)","v":"Ohjattu"},{"$nulls":15},{"$f":"VLOOKUP(AG14,AG2:AR85,$AE$1+1,FALSE)","v":"Return ohjaus moottori"},{"$nulls":5},"FR",5,null,"LEIKKAUS B-B","ŘEZ B-B","SECTION B-B","DURCHSCHNITT B-B","Przekrój B-B","COUPE B-B","Max. W x H 5000 x 5500 max 25 m2","VAADE B-B","LEIKKAUS B-B","Разрез B-B"]
[null,"Kies een taal:",{"$nulls":16},{"$f":"VLOOKUP(AG6,AG2:AR85,$AE$1+1,FALSE)","v":"LEIKKAUS A-A"},{"$nulls":10},"NL",6,null,"HUOMAUTUS:","POZNÁMKA:","NOTE:","ACHTUNG:","Uwaga:","Remarque:","OPMERKING:","MÄRKUS","HUOMAUTUS:","ПРИМЕЧАНИЯ:"]
[null,"Valige keel",{"$nulls":5},{"$f":"AG100","v":"lamellin tyypi"},{"$nulls":21},"EST",7]
[null,"Valitse kieli:",{"$nulls":27},"FIN",8,null,"SUORANOSTO (VL-T)","VERTIKÁLNÍ VEDENÍ S PŘEDMONT. HŘÍDELÍ  (VL-T)","PRE-ASSEMBLED VERTICAL LIFT SYSTEM (VL-T)","VERTIKALFÜHRUNG MIT VORMONTIERTER WELLE (VL-T)","PRZYGOTOWANIE_KONSTRUKCYJNE Zarządzanie budynkiem z pre pionowy wał (VL-T)","LEVEE VERTICALE (VL-T)","VERTICAAL PLAFOND SYSTEEM (VL-T)","Vertikaaltõste (VL-T)","SUORANOSTO (VL-T)","ВЕРТИКАЛЬНЫЙ ПОДЪЕМ С ПРЕДСОБРАННЫМ ВАЛОМ (VL-T)"]
[null,"Выберите язык:",null,null,{"$f":"VLOOKUP(AG5,AG2:AR85,$AE$1+1,FALSE)","v":"SISÄLTÄPÄIN KUVATTUNA"},{"$nulls":24},"RU",9,null,"jouset ovipalkkin päällä","PRUŽINY NAD PŘEKLADEM","springs above lintel","Federn oberhalb des Sturzes","SPRĘŻYNY NAD NADPROŻEM","RESSORTS AVANTS DEPORTES DU LINTEAU","veren boven latei","Vedrud ava kohal","jouset ovipalkkin päällä","нижнее расположение вала"]
[{"$nulls":32},"Lamelli 40/80mm","PANEL 40/80mm","SECTION THICKNESS 40/80 mm","Paneel 40/80 mm","Panel 40/80 mm","40/80 mm PANNEAU","PANEEL 40/80 mm","Paneel 40/80 mm","Lamelli 40/80mm","ТОЛЩИНА СЕКЦИИ 40/80мм "]
[{"$nulls":32},"Max. W x H 5000 x 5500 max 25 m2","Max. W x H 5000 x 5500 max 25 m2","Max. W x H 5000 x 5500 max 25 m2","Max. W x H 5000 x 5500 max 25 m2","Max. W x H 5000 x 5500 max 25 m2","Max. W x H 5000 x 5500 max 25 m2","Max. W x H 5000 x 5500 max 25 m2","Max. W x H 5000 x 5500 max 25 m2","Max. W x H 5000 x 5500 max 25 m2","макс. ШхВ (WxH) 5000 x 5500 max 25 m2"]
[{"$nulls":32},"Return ohjaus moottori","Vrata ovládaná motorem","Door operated by motor","Tore mit Antrieb","Bramy z napędem","Motorisée des portes","elektrisch bediende deuren","Tagasi hoidja mootori","Return ohjaus moottori","Возврат управления двигателем"]
[]
[{"$nulls":8},{"$f":" \"Z =  \" & N59","v":"Z =  EI VAADITTU"}]
[{"$nulls":32},"asennus tiiliseinän","Montáž na cihlové zdivo","mounting on brickwork","Montage auf Mauerwerk und Ziegel","montaż do muru i cegły","montage sur béton","montage op beton","Paigaldus kiviseinale","asennus tiiliseinän","монтаж на бетон"]
[{"$nulls":32},"asennus betoniin","Montáž na porobeton","mounting on cellular concrete","Montage auf Porenbeton oder Gasbeton","montaż do betonu porowatego","montage sur parpaing creux","montage op gasbeton","Paigaldus poorbetoonile","asennus betoniin","монтаж на газобетон"]
[{"$nulls":32},"asennus eristettyyn seinäelementtiin","Montáž na opláštění","mounting on insulated cladding","Montage auf ISO-Trapezblechfassade","montaż do płaszcza","montage sur structure métallique  (a fournir par le charpentier)","montage op binnendooscontructie met damwandbeplating","Paigaldus soojustatud seinapaneelile","asennus eristettyyn seinäelementtiin","монтаж на металлокаркас"]
[{"$nulls":8},{"$f":" \"(1) \" & $AG$33","v":"(1) TARVITTAVA VAPAA TILA"}]
[]
[{"$nulls":32},"ASIAKKAAN TEHTÄVÄT TYÖT, ELLEI ETUKÄTEEN KIRJALLISESTI MUUTOIN SOVITTU ","PRÁCE, KTERÉ MUSÍ BÝT PROVEDENY ZÁKAZNÍKEM PŘED MONTÁŽÍ, POKUD NEBYLO DOHODNUTO JINAK","WORK TO BE CARRIED OUT BY CUSTOMER, UNLESS IN ADVANCE OTHERWISE IS AGREED IN WRITING.","VORBEREITUNGEN UND ARBEITEN DIE VOM AUFTRAGGEBER ZU ERBRINGEN SIND, AUßER BEI SCHRIFTLICHER VEREINBARUNG IM VORAUS:","PRACE, KTÓRE MUSZĄ ZOSTAĆ WYKONANE PRZEZ KLIENTA PRZED WYKONANIEM MONTAŻU, O ILE NIE UZGODNIONO INACZEJ.","APPROVISIONNEMENT & TRAVAUX INCOMBANT AU MAITRE D'OUVRAGE  (sauf accord contraire)","VOORZIENINGEN EN WERKZAAMHEDEN DOOR OPDRACHTGEVER TE VERZORGEN, TENZIJ VOORAF SCHRIFTELIJK ANDERS IS OVEREENGEKOMEN ","Kliendi poolt tehtavad ettevalmistustööd v.a juhul kui pole kirjalikult teistmoodi kokku lepitud","ASIAKKAAN TEHTÄVÄT TYÖT, ELLEI ETUKÄTEEN KIRJALLISESTI MUUTOIN SOVITTU ","МАТЕРИАЛЫ И ПРОВЕДЕНИЕ РАБОТ ОБЕСПЕЧИВАЮТСЯ КЛИЕНТОМ,ЕСЛИ ИНОЕ НЕ ОГОВОРЕНО ЗАРАНЕЕ В ПИСЬМЕННОЙ ФОРМЕ"]
[{"$nulls":8},{"$f":"IF(K7=AU1,\"\",\"(2) \"&$AG$44)","v":"(2) tarvittava tila mootori- tai ketjunostolle "},{"$nulls":23},"\nRakenteellinen:","Konstrukční:","Constructional :","Bauseits:","Konstrukcyjne:","Structure: ","Bouwkundig:","Ehituslikud:","\nRakenteellinen:","Конструктивно:"]
[{"$nulls":8},{"$f":"IF(OR(J7=AU2,J7=AU3,J7=\"\"),\"(3) \"&$AG$45,\"\")","v":"(3) Kiinnityspinta ohjauspaneelia varten. Katso mitat tuoteasiakirjoista"},{"$nulls":14},{"$f":"VLOOKUP($AG$17,$AG$2:$AR$85,$AE$1+1,FALSE)","v":"asennus tiiliseinän"},{"$nulls":8},"Toimittaa ja asentaa asennuskehyksen ja asennuspinnat kiskoille ja jousipaketille tapauksessa jossa kevytbetooni tai sandwich-paneeli jne.","Příprava montážních ploch pro vedení vrat a pro pružiny.","Supply and fix mounting frame and mounting surfaces for the rails and the spring packet in case of aerated concrete or sandwichpanels etc.","Ein stählerner Montagerahmen zur Befestigung der vertikalen Laufschienen und des Federpakets bei nicht tragfähigen Flächen wie z.B. Porenbeton, Gasbeton, Isolationspanelen u.s.w..","Przygotowanie powierzchni montażowych dla prowadzenia bramy oraz dla sprężyn.","Préparation de la structure de montage des rails de guidage et des ressorts pour une pose sur panneaux isolants","Een stalen montageframe voor de bevestiging van de verticale looprails en het verenpakket bij niet dragende montagevlakken, zoals gasbeton, isolatiepanelen, sandwichpanelen enz.","Avaettevalmistusraami tarnimine ja paigaldus siinide ja vedrude kinnituseks","Toimittaa ja asentaa asennuskehyksen ja asennuspinnat kiskoille ja jousipaketille tapauksessa jossa kevytbetooni tai sandwich-paneeli jne.","Стальная монтажная рама для установки вертикальных направляющих и пружин в случае не несущих монтажных поверхностей, таких как: газобетон, изоляционные панели, сэндвич-панели и т.д."]
[{"$nulls":32},"Tarvittava kiinnityspinta ja vapaa tilaa kuvan mukaisesti.","Nezbytné montážní plochy a volný prostor dle nákresu.","Necessary mounting surface and free room as shown.","Benötigte Montageflächen und Freiräume gemäß Zeichnung.","Niezbędne powierzchnie montażowe oraz wolna przestrzeń wg rysunku.","Adapter la structure et l' espace disponible selon nos plans de réservations ci-contre","Benodigde montagevlakken en vrije ruimtes, volgens tekening.","Piisav paigaldusruum vastavalt lisatud joonisele","Tarvittava kiinnityspinta ja vapaa tilaa kuvan mukaisesti.","Необходимые монтажные поверхности и свободное пространство в соответствии с чертежом"]
[{"$nulls":8},{"$f":"IF(OR(J7=AU2,J7=AU2,J7=AU3,J7=\"\"),\"(4) \"&AG47,\"\")","v":"(4) Pistorasian parametrit löytyvät tuoteasiakirjoista."},{"$nulls":23},"Sähkönsyöttö tarvittu:","Elekrická příprava (pro elektricky ovládaná sekční vrata): ","Electrical supply required to be :","Elektrisch (bei elektrisch bedienten Toren):","Przygotowanie elektryczne (dla elektrycznie sterowanej bramy segmentowej) :","Alimentation electrique  (pour porte motorisée) :","Elektrisch: (bij elektrisch bediende deuren)","Elektriliselt avatavate uste jaoks","Sähkönsyöttö tarvittu:","Электрика (для ворот с электрическим управлением):"]
[{"$nulls":23},{"$f":"VLOOKUP($AG$18,$AG$2:$AR$85,$AE$1+1,FALSE)","v":"asennus betoniin"},{"$nulls":8},"400V / 230V 3 vaihe+neutraali ja maadoitus tarjotuna Euro pistorasiasta.","Zásuvka CEE 16 A, 5P, 400 V = zásuvka s nulovým a zemnícím vodičem","400V/230V 3 phase neutral and earth terminating, provided by euro plug socket.","Stromzufuhr 400V/230V mittels Eurosteckdose, 3 Phasen+0+PE max.1 meter vom Schaltkasten.","Gniazdo CEE 16 A, 5P, 400 V = gniazdo z przewodnikiem zerowym i uziemiającym","400V triphase T+N avec prise de raccordement CEE 16 A","Voeding  400V/230V door middel van eurostopcontact, 3 fase+0+PE max. ","Toite vedu ajamini - 400V/230V, 3 faasi","400V / 230V 3 vaihe+neutraali ja maadoitus tarjotuna Euro pistorasiasta.","Питание 400V/230V посредством заземленной евророзетки, 3 фазы+0+РЕ "]
[{"$nulls":32},"Tarjoa sopivan kiinnityspinnan  ohjauspaneelia varten ,mitat 250 x 400 mm","Zajistit vhodnou montážní plochu pro řídící jednotku motoru 250 x 400 mm","Provide suitable mounting surface for control panel, dimensions 250 x 400 mm","Montagefläche für Schaltkasten, Abmessungen 250 x 400 mm","Zapewnić odpowiednią powierzchnię montażową dla jednostki sterującej silnika 250x400","Assurer une surface de montage adéquate pour le coffret de commande du moteur L.250 x H.400 mm","Montagevlak t.b.v. schakelkast, afmetingen 250 x 400 mm","Kontrolleri jaoks piisava paigaldusruumi tagamine 250x400 mm","Tarjoa sopivan kiinnityspinnan  ohjauspaneelia varten ,mitat 250 x 400 mm","необходимо обеспечить монтажную поверхность для панели управления, размеры 250х400 мм"]
[]
[]
[{"$nulls":23},{"$f":"VLOOKUP($AG$19,$AG$2:$AR$85,$AE$1+1,FALSE)","v":"asennus eristettyyn seinäelementtiin"},{"$nulls":8},"TARVITTAVA KIINNITYSPINTA","NEZBYTNÁ MONTÁŽNÍ PLOCHA","NECESSARY MOUNTING SURFACE","BENÖTIGTER MONTAGEFLÄCHEN","NIEZBĘDNA POWIERZCHNIA MONTAŻOWA","SURFACE NECESSAIRE DE MONTAGE","BENODIGDE MONTAGEVLAKKEN","Vajalik paigaldusruum","TARVITTAVA KIINNITYSPINTA","необходимая монтажная поверхность"]
[{"$nulls":32},"LISÄ ASENNUSTILA ","DODATEČNÉ MONTÁŽNÍ PLOCHY PRO KONZOLY","EXTRA PLANES AT WEAK SURFACES","MONTAGEFLÄCHE FÜR DEN MOTOR","Dodatkowych obszarach montażu konsoli","FACILITÉ DE MONTAGE ADDITIONNEL POUR CONSOLE","EXTRA VLAKKEN BIJ ZWAKKE ONDERGROND","Lisaplaadid nõrgale pinnale","LISÄ ASENNUSTILA ","металлокаркас из стальной профильной трубы"]
[{"$nulls":32},"TARVITTAVA VAPAA TILA","NEZBYTNÝ VOLNÝ PROSTOR","NECESSARY FREE ROOM","BENÖTIGTER FREIRAUM","niezbędne miejsce","ESPACE LIBRE NECESSAIRE","BENODIGDE VRIJE RUIMTE","Vajalik vaba ruum ","TARVITTAVA VAPAA TILA","необходимое свободное пространство"]
[{"$nulls":32},"LISÄTILA MOOTORIA/KETJUA VARTEN","VOLNÝ PROSTOR PRO MOTOR/ŘETĚZ.PŘEVOD","EXTRA FREE ROOM FOR MOTOR/CHAIN","EXTRA FREIRAUM FÜR MOTOR/KETTE","Wolnego miejsca na silnik, napęd łańcuchowy","ESPACE LIBRE POUR MOTEUR / CHAINE DE LEVAGE.","EXTRA VRIJE RUIMTE BIJ MOTOR/KETTING","Lisa vaba ruum mootorile/ketile","LISÄTILA MOOTORIA/KETJUA VARTEN","дополнительное свободное пространство для двигателя/подъемной цепи"]
[{"$nulls":10},"B",null,{"$f":"VLOOKUP(AG37,AG2:AR85,$AE$1+1,FALSE)","v":"kaltevuus"}]
[]
[{"$nulls":32},"kaltevuus","sklon podlahy","fall of the floor","Bodenneigung","nachylenie podłogi","réservations seuil béton","vloer met waterkering","pinna langus","kaltevuus","пол с водоотводом"]
[{"$nulls":32},"ulkopuoli","směrem ven","outside","nach aussen","w kierunku na zewnątrz","à l'extérieur","buitenzijde","väljaspool","ulkopuoli"]
[{"$nulls":32},"kaltevuus 3%","sklon 3%","fall 3%","Gefälle 3%","nachylenie 3%","PENTE 3%","afschot 3%","langus 3%","kaltevuus 3%","наклон 3%"]
[{"$nulls":32},"sisäinen taso","směrem ven","internal level","Wasserschenkel","w kierunku na zewnątrz","réservations seuil béton","niveau binnen","Sisemine tasand","sisäinen taso"]
[{"$nulls":17},{"$f":"VLOOKUP(AG31,AG2:AR85,$AE$1+1,FALSE)","v":"TARVITTAVA KIINNITYSPINTA"},{"$nulls":14},"lattia nostetulla","sklon podlahy","floor with raised","Boden mit","nachylenie podłogi","pente du plancher","vloer met  ","põrand koos tõstetud sisetasandiga","lattia nostetulla","пол с наклоном 3%"]
[]
[{"$nulls":17},{"$f":"VLOOKUP(AG32,AG4:AR86,$AE$1+1,FALSE)","v":"LISÄ ASENNUSTILA "},{"$nulls":5},{"$f":"VLOOKUP(AG33,AG4:AR86,$AE$1+1,FALSE)","v":"TARVITTAVA VAPAA TILA"}]
[{"$nulls":32},{"$f":"VLOOKUP(AH44,AH44:AR139,$AE$1,FALSE)","v":"tarvittava tila mootori- tai ketjunostolle "},"nezbytný boční prostor pro motor nebo řetězový pohon","necessary side room for electrical- or hauling chain operation","Benötigter Freiraum bei Elektro- oder Haspelkettenbedienung ","niezbędna przestrzeń boczna dla silnika lub napędu łańcuchowego","écoinçon minimum requis pour le moteur ou treuil a chaîne","benodigde vrije ruimte voor elektrische- of ketting bediening","vajalik küljeruum mootori või tali puhul","tarvittava tila mootori- tai ketjunostolle ","необходимое боковое пространство для электропривода или цепного редуктора"]
[null,{"$f":"VLOOKUP(AG8,AG2:AR85,$AE$1+1,FALSE)","v":"HUOMAUTUS:"},{"$nulls":30},{"$f":"VLOOKUP(AH45,AH45:AR140,$AE$1,FALSE)","v":"Kiinnityspinta ohjauspaneelia varten. Katso mitat tuoteasiakirjoista"},"montážní plocha pro řídící jednotku. Rozměry najdete v dokumentaci ŘJ.","Mounting surface for control panel. See product documentation for dimensions","Montagefläche für Antriebsteuerung. Siehe Produktdokumentation für Abmessungen","Powierzchnia montażowa dla jednostki sterującej. Wymiary można znaleźć w dokumentacji produktu","Surface de montage pour le Coffret de commande","Montagevlak t.b.v. Zie productdocumentatie voor afmetingen","Kontrolli paigaldusala. Vaata toote dokumentatsiooni mõõtmete kohta","Kiinnityspinta ohjauspaneelia varten. Katso mitat tuoteasiakirjoista","монтажная поверхность для блока управления. Размеры см. в документации на изделие"]
[{"$nulls":32},{"$f":"VLOOKUP(AH46,AH46:AR138,$AE$1,FALSE)","v":"keskiviiva ca 1,400 -1,500 mm: n korkeudella lattiasta"},"osa cca 1.400 až 1.500 mm od podlahy","center line ca 1.400 -1.500 mm above floor","Achse ca. 1.400 bis 1.500 mm vom Boden","oś ok. 1.400 do 1.500 mm od podłogi","axe d'env. 1 400 a 1 500 mm a compter ","hartlijn ca. 1.400 - 1.500 boven de vloer","Keskjoon ca 1400-1500 mm põrandast","keskiviiva ca 1,400 -1,500 mm: n korkeudella lattiasta","осевая линия примерно 1.400-1.500 мм над уровнем пола"]
[null,{"$f":"VLOOKUP(AG50,AG2:AR85,$AE$1+1,FALSE)","v":"Ylä ja sivukarmien sekä jousipaketin asennuspinnan pitää olla tasaisia ja samassa linjassa"},{"$nulls":15},{"$f":"VLOOKUP(AG22,AG2:AR85,$AE$1+1,FALSE)","v":"ASIAKKAAN TEHTÄVÄT TYÖT, ELLEI ETUKÄTEEN KIRJALLISESTI MUUTOIN SOVITTU "},{"$nulls":14},{"$f":"VLOOKUP(AH47,AH47:AR142,$AE$1,FALSE)","v":"Pistorasian parametrit löytyvät tuoteasiakirjoista."},"Zásuvka, parametry najdete v dokumentaci produktu","Electric outlet parameters can be found in the product documentation.","Die Parameter der Steckdosen sind in der Produktdokumentation zu finden.","Parametry gniazdka elektrycznego można znaleźć w dokumentacji produktu.","Les paramètres des prises électriques sont indiqués dans la documentation du produit.","De parameters van het stopcontact zijn te vinden in de productdocumentatie.","Elektripistiku parameetrid leiate toote dokumentatsioonist.","Pistorasian parametrit löytyvät tuoteasiakirjoista.","Параметры электрической розетки приведены в документации на изделие.","Параметры электрической розетки приведены в документации на изделие."]
[null,{"$f":"VLOOKUP(AG51,AG2:AR85,$AE$1+1,FALSE)","v":"Lisäksi oviaukon pitää olla pysty- ja vaakasuora sekä nelikulmainen."}]
[null,{"$f":"VLOOKUP(AG52,AG2:AR85,$AE$1+1,FALSE)","v":"Lattian pitää olla tasainen ja vaakasuora."},{"$nulls":15},{"$f":"VLOOKUP(AG23,AG2:AR85,$AE$1+1,FALSE)","v":"\nRakenteellinen:"}]
[{"$nulls":17},{"$f":"VLOOKUP(AG24,AG2:AR85,$AE$1+1,FALSE)","v":"Toimittaa ja asentaa asennuskehyksen ja asennuspinnat kiskoille ja jousipaketille tapauksessa jossa kevytbetooni tai sandwich-paneeli jne."},{"$nulls":14},"Ylä ja sivukarmien sekä jousipaketin asennuspinnan pitää olla tasaisia ja samassa linjassa","Stěna nad překladem, stěny vedle otvoru a plochy pro montáž konzol musí být rovné a v jedné rovině.","The rear face of the lintel and the door jambs, as well as the surface for the spring packet must be levelled and in line.","Die hinteren Seiten der Sturze und Pfeiler, sowie die Montagefläche für das Federpaket müssen eben und auf einer Linie liegen.","Ściany tłumaczenia, obok ściany otworu oraz wszystkie obszary i zbiórki musi być kolor.","La surface d'appui pour la pose de la porte sectionnelle doit etre dans le meme plan et verticale.","De achterkanten van de penanten, de latei en de montagevlakken van het verenpakket dienen vlak en in één lijn te liggen.","Kõik paigalduspinnad peavad olema ühes tasapinnas ja loodis","Ylä ja sivukarmien sekä jousipaketin asennuspinnan pitää olla tasaisia ja samassa linjassa","Монтажная поверхность должна быть ровной и распологаться в одной вертикальной плоскости"]
[null,{"$f":"VLOOKUP(AG55,AG2:AR85,$AE$1+1,FALSE)","v":"YKSIKKÖ mm"},{"$nulls":30},"Lisäksi oviaukon pitää olla pysty- ja vaakasuora sekä nelikulmainen.","Otvor musí být svislý a obdélníkový.","Furthermore the opening must be plumb and square.","Im übrigen müssen die lichten Masse eben und rechtwinklig sein.","Otwór musi być pionowy i prostokątny.","L'ouverture de la baie doit etre parfaitement de niveau et d'equerre.","Tevens moet de dagmaat vlak en haaks zijn.","Ava peab olema täpne ja nelinurkne","Lisäksi oviaukon pitää olla pysty- ja vaakasuora sekä nelikulmainen.","Проем также должен быть ровным и прямоугольным."]
[null,"W =",{"$f":"VLOOKUP(AG56,AG2:AR85,$AE$1+1,FALSE)","v":"Oviaukon leveys"},null,null,{"$f":"IF(J3=\"\",\"W \",\"W = \" &J3)","v":"W "},{"$f":"IF(K7=\"\",AG67,AG99&\":\" & \"  \" &K7)","v":"Sähkö- tai ketjukäytöinen"},{"$nulls":5},{"$f":"VLOOKUP(AG70,AG6:AR88,$AE$1+1,FALSE)","v":"Tila oviaukon päällä"},{"$nulls":4},{"$f":"VLOOKUP(AG25,AG2:AR85,$AE$1+1,FALSE)","v":"Tarvittava kiinnityspinta ja vapaa tilaa kuvan mukaisesti."},{"$nulls":14},"Lattian pitää olla tasainen ja vaakasuora.","Podlaha musí být rovná a vodorovná.","Floor area must be flat and horizontal.","Der Fussboden muss glatt und waagerecht sein.","Podłoga musi być równa i pozioma.","Le sol doit etre parfaitement horizontal et plan.","De afgewerkte vloer dient vlak en waterpas te liggen.","Põrandapind peab olema sile ja horisontaalne","Lattian pitää olla tasainen ja vaakasuora.","Обработанный пол должен быть ровным и без склонов."]
[null,"H =",{"$f":"VLOOKUP(AG57,AG3:AR85,$AE$1+1,FALSE)","v":"Oviaukon korkeus"},null,null,{"$f":"IF(J5=\"\",\"H \",\"H = \" &J5)","v":"H "},{"$f":"IF(J7=\"\",\"L/R\",\"L\")","v":"L/R"},{"$f":"IF(J7=\"\",AG108,VLOOKUP(AG61,AG7:AR98,$AE$1+1,FALSE))","v":"Moottorin puoli "},{"$nulls":3},{"$f":"IF(OR(general!J7=\"\"),\"\",IF(OR(general!J7=general!AG93,general!J7=general!AG99,general!J7=general!AG96),\"min. \"&250,IF(general!J7=general!AG98,430,IF(general!J7=general!AG95,330))))","v":""},"F",null,"H + 420",{"$f":"IF(OR(J3=\"\",J5=\"\"),\"\",$J$5+420)","v":""},null,{"$f":"VLOOKUP(AG26,AG2:AR85,$AE$1+1,FALSE)","v":"Sähkönsyöttö tarvittu:"}]
[null,"E = ","sisäkorkeus",null,null,{"$f":"IF(J3=\"\",\"E \",\"E = \" &P55)","v":"E "},{"$f":"IF(J7=\"\",\"L/R\",\"R\")","v":"L/R"},{"$f":"IF(J7=\"\",AG109,VLOOKUP(AG62,AG8:AR99,$AE$1+1,FALSE))","v":"Muu puoli "},{"$nulls":3},{"$f":"IF(OR(general!J7=\"\"),\"\",IF(OR(general!J7=general!AG93,general!J7=general!AG95,general!J7=general!AG98),\"min. \"&250,IF(general!J7=general!AG99,430,IF(general!J7=general!AG96,330))))","v":""},"J",null,"H + 150",{"$f":"IF(OR(J3=\"\",J5=\"\"),\"\",$J$5+150)","v":""},null,{"$f":"AG47","v":"Pistorasian parametrit löytyvät tuoteasiakirjoista."}]
[null,"F = ","vapaa ylätila",null,null,{"$f":"IF(J5=\"\",\"F\",\"F = \" &P53)","v":"F"},{"$f":"VLOOKUP(AG69,AG6:AR88,$AE$1+1,FALSE)","v":"tila takana"},{"$nulls":5},"E",null,"min. H + F",{"$f":"IF(OR(J3=\"\",J5=\"\"),\"\",\"min. \"&J5+P53)","v":""},{"$nulls":16},"YKSIKKÖ mm","Rozměry jsou v mm","UNITS in mm","MASSE in mm","Wymiary podane w mm","MESURES en mm","MATEN in mm","Mõõdud mm","YKSIKKÖ mm","размеры в мм:"]
[null,"J = ","Rungon korkeus oviaukon yläpuolella.",null,null,{"$f":"IF(J5=\"\",\"J\",\"J = \" &P54)","v":"J"},"D",{"$nulls":4},"min. 600",{"$f":"VLOOKUP(AG71,AG6:AR88,$AE$1+1,FALSE)","v":"Akseli ovipalkkin päällä"},{"$nulls":4},{"$f":"VLOOKUP(AG74,AG2:AR85,$AE$1+1,FALSE)","v":"\nSuunnitellut:"},null,{"$f":"VLOOKUP(AG75,AG2:AR85,$AE$1+1,FALSE)","v":"Tarkistanut"},null,{"$f":"VLOOKUP(AG76,AG2:AR85,$AE$1+1,FALSE)","v":"\nHyväksytty - päivämäärä:"},null,{"$f":"VLOOKUP(AG77,AG2:AR85,$AE$1+1,FALSE)","v":"\nTiedoston nimi:"},null,{"$f":"VLOOKUP(AG78,AG2:AR85,$AE$1+1,FALSE)","v":"Päivämäärä:"},{"$f":"VLOOKUP(AG79,AG2:AR85,$AE$1+1,FALSE)","v":"Mittakaava:"},{"$f":"VLOOKUP(AG80,AG2:AR85,$AE$1+1,FALSE)","v":"Lista:"},{"$nulls":4},"Oviaukon leveys","Šířka otvoru","Opening width","Lichte Breite","Szerokość otworu","LARGEUR DE BAIE","Dagmaat breedte","Ava laius","Oviaukon leveys","ширина проема"]
[null,"L = ","vapaa tila vasemalla",null,null,{"$f":"IF(OR(J3=\"\",J7=\"\"),\"L\",IF(Obrázky!Y16=\"\",\"L\",IF(OR(J3=\"\",J7=\"\"),\"L\",Obrázky!$Y$16)))","v":"L"},{"$nulls":6},"A",null,null,670,null,"K. Luňák",null,"R. Kříž",null,"2025-05-28",null,"STP",null,"2025-05-28","-","A3",{"$nulls":4},"Oviaukon korkeus","Výška otvoru","Opening height","Lichte Höhe","Wysokość otworu","HAUTEUR DE BAIE","Dagmaat hoogte","Ava kõrgus","Oviaukon korkeus","высота проема"]
[null,"R = ","vapaa tila oikealla",null,null,{"$f":"IF(OR(J3=\"\",J7=\"\"),\"R\",IF(Obrázky!Y17=\"\",\"R\",IF(OR(J3=\"\",J7=\"\"),\"R\",Obrázky!$Y$17)))","v":"R"},{"$nulls":11},"http://door-documents.com/en/indy-installation-drawing-vl-t",{"$nulls":3},{"$f":"VLOOKUP(AG81,AG2:AR85,$AE$1+1,FALSE)","v":"ASENNUSPIIRUSTUS "},{"$nulls":10},"sisäkorkeus","Výška stropu","Interior height","Höhe Innenraum","Wysokość stropu","HAUTEUR SOUS PLAFOND","Hoogte binnenruimte","Sisemine kõrgus","sisäkorkeus","высота внутри помещения до перекрытий"]
[null,"D = ","tila takana",{"$nulls":9},"Z",{"$f":"IF(OR(J3>3000,J5>3000,J9=AG102),350,AG86)","v":"EI VAADITTU"},{"$nulls":18},"vapaa ylätila","Volný prostor nad překladem","Free room above lintel","Freiraum über Sturz","Wolna przestrzeń nad nadprożem","RETOMBEE DE LINTEAU DISPONIBLE","Vrije ruimte boven latei","Vaba ruum laeni","vapaa ylätila","свободное пространство над проемом"]
[null,"Q = ","Vapaa tila asennuspisten kohdalla",{"$nulls":18},{"$f":"AG10","v":"SUORANOSTO (VL-T)"},{"$nulls":10},"Rungon korkeus oviaukon yläpuolella.","Výška montážní plochy nad otvorem","Height of frame above opening","Höhe über Montagefläche Loch","Wysokość powyżej otworu montażowego powierzchni","HAUTEUR AU-DESSUS DU TROU DE SURFACE DE MONTAGE","Hoogte frame boven latei","Raami kõrgus ava kohal","Rungon korkeus oviaukon yläpuolella.","высота конструкции ворот над проемом"]
[{"$nulls":32},"vapaa tila vasemalla","Volný prostor vlevo","Free side room left","Freiraum LINKS","Wolna przestrzeń W LEWO","ECOINCON GAUCHE","Vrije zijruimte links","Vaba küljeruum vasakul","vapaa tila vasemalla","свободное боковое пространство СЛЕВА"]
[{"$nulls":21},{"$f":"VLOOKUP(AG82,AG2:AR85,$AE$1+1,FALSE)","v":"jouset ovipalkkin päällä"},{"$nulls":3},{"$f":"VLOOKUP(AG84,AG2:AR85,$AE$1+1,FALSE)","v":"Koodi:"},{"$f":"VLOOKUP(AG85,AG2:AR85,$AE$1+1,FALSE)","v":"Versio:"},{"$nulls":5},"vapaa tila oikealla","Volný prostor vravo","Free side room right","Freiraum RECHTS","Wolna przestrzeń W PRAWO","ECOINCON DROITE","Vrije zijruimte rechts","Vaba küljeruum paremal","vapaa tila oikealla","свободное боковое пространство СПРАВА"]
[{"$nulls":25},"C45-C1",2522,{"$nulls":5},"tila takana","Hloubka vedení","Back room","Einbautiefe","Głębokość prowadzenia poziomego","REFOULEMENT HORS-TOUT","Inbouwdiepte","Sügavus","tila takana","монтажная глубина"]
[{"$nulls":32},"Vapaa tila asennuspisten kohdalla","Volný prostor nad vertikálním vedením","Free room above mounting surface","Freiplatz auf der Mountageplatz","Wolny przestrzeń nad nadproźem","Espace au-dessus de la surface de montage","Ruimte boven montagevlak","Vaba ruum ülalpool paigalduspinda","Vapaa tila asennuspisten kohdalla","технологический зазор"]
[{"$nulls":32},"Käsikäyttöinen","Ruční ovládání","Manually operated","Handbedienung","Sterowanie ręczne","PORTE MANUELLE","Handbediend","Käsitsi avatav","Käsikäyttöinen","ручное управление"]
[{"$nulls":32},"\nKaksipuoleinen","Obě strany","Both sided","Beide Seiten","Obie strony","LES 2 COTES","Beide zijden","Mõlemal pool","\nKaksipuoleinen","обе стороны"]
[{"$nulls":32},{"$f":"VLOOKUP(AH67,AH67:AR150,$AE$1,FALSE)","v":"Sähkö- tai ketjukäytöinen"},"Ovládání elektricky nebo řetězovým převodem","Electrical or hauling chain operated","Elektrisch- oder Haspelkettenbedient","Sterowanie elektr. lub za pom. przekł. łańc.","PORTE MOTORISEE OU AVEC TREUIL A CHAINE","Elektrisch- of handketting bediend","Elektriliselt või taliga avatav","Sähkö- tai ketjukäytöinen","электрическое управление или с помощью цепи"]
[{"$nulls":32},"Mootorin tai ketjun puolinen","Motor nebo řetěz. př.","Motor or chain side","Motor-oder Kettenseite","Silnik lub przekł. łańc.","ECOINCON LIBRE A COTE DE MOTEUR","Motor- of kettingzijde","Mootori või tali pool","Mootorin tai ketjun puolinen","сторона цепи или мотора"]
[{"$nulls":32},"Tila takana","Hloubka vedení","Back room","Einbautiefe","Głębokość prowadzenia","REFOULEMENT HORS-TOUT","Inbouwdiepte","Sügavus","Tila takana","монтажная глубина"]
[{"$nulls":32},"Tila oviaukon päällä","Volný prostor nad překladem","Free room above lintel","Freiraum über Sturz","Wolna przestrzeń nad nadprożem (min.)","RETOMBEE DE LINTEAU DISPONIBLE","Vrije ruimte boven latei","Vaba ruum sillusest  laeni","Tila oviaukon päällä","свободное пространство над проемом"]
[{"$nulls":32},"Akseli ovipalkkin päällä","Osa hřídele nad překladem","Height of shaft above lintel","Mitte Achse zum Sturz","Oś wału nad nadprożem","POSITIONNEMENT AXE DE l'ARBRE DE LINTEAU","Center as boven latei","Kesktelg","Akseli ovipalkkin päällä","центральная ось вала"]
[]
[]
[{"$nulls":32},"\nSuunnitellut:","Sestavil:","Designed by:","Aufgestellt:","Wykonał:","DESSINE PAR:","Getekend door:","Joonestatud:","\nSuunnitellut:","спроектировано:"]
[{"$nulls":32},"Tarkistanut","Upravil:","Checked by","Bereinigt:","Skorygował:","MODIFIE PAR:","Gecontroleerd door:","Kontrollitud:","Tarkistanut","проверил:"]
[{"$nulls":32},"\nHyväksytty - päivämäärä:","Schváleno - datum:","Approved by - date:","Bereinigt am:","Skorygowano dnia:","MODIFIE LE (DATE):","Goedgekeurd door - datum:","Kinnitatud:","\nHyväksytty - päivämäärä:","одобрил-дата:"]
[{"$nulls":32},"\nTiedoston nimi:","Název souboru:","File name:","Dateiname:","Nazwa pliku:","TITRE:","Bestandsnaam","Faili nimi:","\nTiedoston nimi:","навание файла:"]
[{"$nulls":32},"Päivämäärä:","Datum:","Date:","Datum:","Data:","DATE:","Datum:","Kuupäev:","Päivämäärä:","дата:"]
[{"$nulls":32},"Mittakaava:","Měřítko","Scale:","Massst.:","Podział.:","ECHELLE:","Schaal:","Mõõtkava:","Mittakaava:","шкала:"]
[{"$nulls":32},"Lista:","Formát: ","Sheet:","Format:","Format:","FORMAT:","Sheet:","Formaat:","Lista:","лист:"]
[{"$nulls":32},{"$f":"VLOOKUP(AH81,AH81:AR172,$AE$1,FALSE)","v":"ASENNUSPIIRUSTUS "},"STAVEBNÍ PŘIPRAVENOST","INSTALLATION DRAWING","BAUBEREITSCHAFT","PRZYGOTOWANIE_KONSTRUKCYJNE","PLAN DE RESERVATIONS & ENCOMBREMENTS",null,"Paigaldusjoonis","ASENNUSPIIRUSTUS ","монтажный чертеж"]
[{"$nulls":32},"jouset ovipalkkin päällä","pružiny nad překladem ","springs above lintel ",null,"sprężyny nad nadprożem ",null,"verenpakket boven latei","vedrud ava kohal","jouset ovipalkkin päällä","нижнее расположение вала"]
[{"$nulls":32},0,"VERTIKÁLNÍ SYSTÉM","VERTICAL LIFT SYSTEM",null,"PROWADZENIE PIONOWE (VL-T)","LEVEE VERTICALE (VL)","VERTICAAL PLAFONDSYSTEEM"]
[{"$nulls":32},"Koodi:","Kód:","Code:","Kode:","Kod:","CODE:","Nr.:","Kood:","Koodi:","код:"]
[{"$nulls":32},"Versio:","Verze:","Version:","Version:","Wersja:","VERSION:","Versie:","Versioon:","Versio:","версия:"]
[{"$nulls":32},"EI VAADITTU","NENÍ POŽADOVÁNO","NOT REQUIRED","NICHT ERFORDELICH","Nie jest wymagane","Pas nécessaire","NIET BENODIGD","Mitte vajalik","EI VAADITTU","НЕ ТРЕБУЕТСЯ"]
[]
[{"$nulls":32},"\nTäytä kentät, jotka on merkitty värillä!","Prosím, vyplňte pole, která jsou označena barevně!","Please, fill in the fields that are marked in color!","Fülen Sie bitte markierte Felder!","Prosimy o wypełnienie pól oznaczonych kolorem!","S'il vous plaît remplissez les champs qui sont marqués en couleur!","Vul a.u.b. de gemarkeerde velden in!","Palun täida värvilised väljad!","\nTäytä kentät, jotka on merkitty värillä!","пожалуйста, заполните поля обозначенные цветом!"]
[]
[{"$nulls":32},{"$f":"VLOOKUP(AH90,AH90:AR166,$AE$1,FALSE)","v":"Profiilin hitsattu teräsrakenne mittojen mukaan 100x50x4"},"Ocelovou konstrukci svařit z profilu 100x50x4 dle uvedených rozměrů","Welded steel construction of the profile according to the dimensions 100x50x4","Geschweißte Stahlkonstruktion des Profils nach dem Maße 100x50x4","Stalowa konstrukcja spawana z profilu według wymiarów 100x50x4","Construction en acier soudé du profil en fonction de la dimension 100x50x4","Staalconstructie van het profiel 100x50x4 volgens de afmetingen lassen","Keevitatud teraskonstrukstioon 100x50x4 profiilidest","Profiilin hitsattu teräsrakenne mittojen mukaan 100x50x4","Стальная конструкция из профильной трубы 100х50х4 мм"]
[]
[{"$nulls":32},{"$f":"VLOOKUP(AH92,AH92:AR181,$AE$1,FALSE)","v":"Ohjattu"},"Ovládání","Operated","Bedienung","Sterowanie","PORTE","Bediening","Avamine","Ohjattu","Тип управления"]
[{"$nulls":32},"manuaalisesti","ručně","manually","hand","ręcznie wykonany","MANUELLE","hand","käsitsi","manuaalisesti","вручную"]
[{"$nulls":32},"sähköisesti","elektricky","electrical ","elektrisch","elektrycznie","MOTORISEE","elektrisch","elektriliselt","sähköisesti","электрическое управление или с помощью цепи"]
[{"$nulls":32},{"$f":"VLOOKUP(AH95,AH95:AR189,$AE$1,FALSE)","v":"ketjukäyttöinen - vasen"},"řetězovým převodem vlevo","hauling chain operated - left","Haspelkette - links","Łańcuch napędu -  lewy","TREUIL A CHAINE - gauche","handketting - links","taliga - vasakule","ketjukäyttöinen - vasen","цепной привод -  левый\n"]
[{"$nulls":32},"ketjukäyttöinen - oikea","řetězovým převodem vpravo","hauling chain operated - right","Haspelkette - rechts","Łańcuch napędu -  prawy","TREUIL A CHAINE - droite","handketting - rechts","taliga - paremale","ketjukäyttöinen - oikea","цепной привод -  правая"]
[{"$nulls":32},"Mootorin asema","Umístění motoru","Possition of motor","Antriebesposition","Pozycja sylnika","LA POSITION MOTEUR","Positie van de motor","mootori asukohta","Mootorin asema","расположение мотора"]
[{"$nulls":32},"sähkömoottori oikealla","Elektricky - motor vlevo","electric motor on the left","Antrieb - links","silnik elektryczny po lewej stronie","moteur électrique à gauche","elektromotor links","elektrimootor vasakul","sähkömoottori oikealla","электродвигатель слева"]
[{"$nulls":32},"sähkömoottori vasemmalla","Elektricky - motor vpravo","electric motor on the right","Antrieb - rechts","silnik elektryczny po prawej stronie","moteur électrique à droite","elektromotor rechts","elektrimootor paremal","sähkömoottori vasemmalla","электродвигатель справа"]
[{"$nulls":32},{"$f":"VLOOKUP(AH100,AH100:AR176,$AE$1,FALSE)","v":"lamellin tyypi"},"Typ panelu","Type of panel","Paneel-Typ","Rodzaj panelu","Type de panneau","Panel type","Paneelitüüp","lamellin tyypi","Тип панели"]
[{"$nulls":32},{"$f":"VLOOKUP(AH101,AH101:AR192,$AE$1,FALSE)","v":"40mm"},"40mm","40 mm","40 mm"," 40 mm","40 mm ","40 mm","40 mm","40mm","40мм "]
[{"$nulls":32},"80mm","80mm","80 mm","80 mm"," 80 mm","80 mm ","80 mm","80 mm","80mm","80мм "]
[{"$nulls":32},"Vasen puoli","Levá strana","Left side ","Linke Seite","Lewa strona","Côté gauche","Linkerzijde","Vasakpoolne","Vasen puoli","левая сторона"]
[{"$nulls":32},"Oikea puoli","Pravá strana","Right side","Rechte Seite","Prawa strona","Côté droit","Rechterkant","Paremal pool","Oikea puoli"]
[{"$nulls":32},{"$f":"VLOOKUP(AH105,AH105:AR200,$AE$1,FALSE)","v":"Tarjous/Tilaus:"},"Nabídka/Objednávka:","Offer/Order:","Angebot/Bestellung:","Oferta/Zamówienie:","Offre/Commande:","Offerte/Order:","Pakkumine/tellimus:","Tarjous/Tilaus:","Предложение/заказ:"]
[{"$nulls":32},{"$f":"VLOOKUP(AH106,AH106:AR201,$AE$1,FALSE)","v":"Työpaikat:"},"Pozice:","Position:","Position:","Pozycje:","Positions:","Positie:","Ametikohad:","Työpaikat:","Позиции:"]
[{"$nulls":32},{"$f":"VLOOKUP(AH107,AH107:AR202,$AE$1,FALSE)","v":"Kaapelin katkaisulaitteelle, jossa on oranssi kansi Sivutila (L ja R) min. 145mm."},"Pro pojistku při prasknutí lanka s oranžovým krytem minimální boční prostor (L a R) min. 145mm","For cable break device with orange cover  side space (L and R) min. 145mm","Für Seilbruchsicher mit orangefarbenem Deckel Seitenabstand (L und R) min. 145mm","Dla przerywacza kabla z pomarańczową osłoną odstęp boczny (L i R) min. 145 mm","Pour les dispositifs de coupure de câble avec couvercle orange espace latéral (G et D) min. 145mm","Voor kabelbreekapparaat met oranje afdekking Zijruimte (L en R) min. 145 mm","Oranži kattega kaablikatkestusseadme jaoks külgmised ruumid (L ja R) min. 145mm","Kaapelin katkaisulaitteelle, jossa on oranssi kansi Sivutila (L ja R) min. 145mm.","Для устройства разрыва кабеля с оранжевой крышкой боковое пространство (L и R) мин. 145 мм"]
[{"$nulls":32},{"$f":"VLOOKUP(AH108,AH108:AR203,$AE$1,FALSE)","v":"Moottorin puoli "},"Strana motoru","Motor side ","Antriebseite ","Strona silnika ","Côté moteur ","Motorzijde ","Mootori pool ","Moottorin puoli ","Сторона двигателя "]
[{"$nulls":32},"Muu puoli ","Druhá strana","Other side","Andere Seite ","Druga strona ","Autre côté ","Andere kant ","Teine pool ","Muu puoli ","Другая сторона "]

{"sheet":"SW-L","index":1,"n_rows":48,"n_cols":5,"rows_kept":48,"merged":[[5,2,13,2],[6,1,9,1],[17,1,20,1],[39,2,40,8],[41,2,42,3],[41,4,42,6],[41,7,48,8],[43,2,44,3],[43,4,44,6],[45,2,46,3],[45,4,46,6],[47,2,48,3],[47,4,48,6]]}
[]
[]
[]
[]
[]
[""]
{"$rows_empty":33}
[null,null,{"$f":"general!U2","v":"SUORANOSTO (VL-T)"}]
[]
[null,null,{"$f":"general!$AG$97","v":"Mootorin asema"},null,{"$f":"general!AG98","v":"sähkömoottori oikealla"}]
[]
[null,null,{"$f":"general!R56","v":"\nSuunnitellut:"}]
[]
[null,null,{"$f":"general!T56","v":"Tarkistanut"}]
[]
[null,null,{"$f":"general!Z56","v":"Päivämäärä:"}]

{"sheet":"SW-R","index":2,"n_rows":48,"n_cols":5,"rows_kept":48,"merged":[[5,2,13,2],[6,1,9,1],[17,1,20,1],[39,2,40,8],[41,2,42,3],[41,4,42,6],[41,7,48,8],[43,2,44,3],[43,4,44,6],[45,2,46,3],[45,4,46,6],[47,2,48,3],[47,4,48,6]]}
[]
[]
[]
[]
[]
[""]
{"$rows_empty":33}
[null,null,{"$f":"general!U2","v":"SUORANOSTO (VL-T)"}]
[]
[null,null,{"$f":"general!$AG$97","v":"Mootorin asema"},null,{"$f":"general!AG99","v":"sähkömoottori vasemmalla"}]
[]
[null,null,{"$f":"general!R56","v":"\nSuunnitellut:"}]
[]
[null,null,{"$f":"general!T56","v":"Tarkistanut"}]
[]
[null,null,{"$f":"general!Z56","v":"Päivämäärä:"}]

{"sheet":"Manually_operated","index":3,"n_rows":48,"n_cols":5,"rows_kept":48,"merged":[[5,2,13,2],[6,1,9,1],[17,1,20,1],[39,2,40,8],[41,2,42,3],[41,4,42,6],[41,7,48,8],[43,2,44,3],[43,4,44,6],[45,2,46,3],[45,4,46,6],[47,2,48,3],[47,4,48,6]]}
[]
[]
[]
[]
[]
[""]
{"$rows_empty":33}
[null,null,{"$f":"general!U2","v":"SUORANOSTO (VL-T)"}]
[]
[null,null,{"$f":"general!$AG$92","v":"Ohjattu"},null,{"$f":"general!AG93","v":"manuaalisesti"}]
[]
[null,null,{"$f":"general!R56","v":"\nSuunnitellut:"}]
[]
[null,null,{"$f":"general!T56","v":"Tarkistanut"}]
[]
[null,null,{"$f":"general!Z56","v":"Päivämäärä:"}]

{"sheet":"Obrázky","index":4,"n_rows":117,"n_cols":26,"rows_kept":117,"hidden":true,"merged":[[5,23,7,29],[19,3,40,3],[19,4,40,9],[43,3,64,3],[43,4,64,9],[67,3,88,3],[67,4,88,9],[91,3,112,3],[91,4,112,9],[116,3,137,3],[116,4,137,9]]}
[]
[]
[]
[]
[]
[{"$nulls":23},"Pomocné výpočty"]
[]
[]
[]
[]
[]
[{"$nulls":23},"W=",{"$f":"general!J3","v":0}]
[{"$nulls":23},"L+ W + R = ",{"$f":"IF(OR(general!J3=\"\",general!J7=\"\"),\"L+W+R \",\"L+W+R = \" & general!J3 +Z16+Z17)","v":"L+W+R "}]
[]
[]
[{"$nulls":23},"Vlevo",{"$f":"IF(OR(general!J7=\"\"),\"\",IF(OR(general!J7=general!AG93,general!J7=general!AG99,general!J7=general!AG96),\"L = \"&250,IF(general!J7=general!AG98,\"L = \"&430,IF(general!J7=general!AG95,\"L = \"&330))))","v":""},{"$f":"RIGHT(Y16,3)","v":""}]
[{"$nulls":23},"Vpravo ",{"$f":"IF(OR(general!J7=\"\"),\"\",IF(OR(general!J7=general!AG93,general!J7=general!AG95,general!J7=general!AG98),\"R = \"&250,IF(general!J7=general!AG99,\"R = \"&430,IF(general!J7=general!AG96,\"R = \"&330))))","v":""},{"$f":"RIGHT(Y17,3)","v":""}]
[]
[]
[{"$nulls":3},{"$f":"general!AG99","v":"sähkömoottori vasemmalla"}]
[]
[{"$nulls":23},"40 NEBO 80MM",{"$f":"IF(OR(general!J9=\"\",general!J9=general!AG101),250,290)","v":250}]
[{"$nulls":23},"A",{"$f":"IF(general!J5=\"\",\"A\",\"A = \" &general!P57)","v":"A"}]
[{"$nulls":23},"D",{"$f":"IF(general!J7=\"\",\"D\",\"D = \" &general!L56)","v":"D"}]
[{"$nulls":23},"Plocha pro výpočet pomocné konzole Z",{"$f":"(general!J3*general!J5)/1000","v":0}]
{"$rows_empty":18}
[{"$nulls":3},{"$f":"general!AG98","v":"sähkömoottori oikealla"}]
{"$rows_empty":23}
[{"$nulls":3},{"$f":"general!AG93","v":"manuaalisesti"}]
{"$rows_empty":23}
[{"$nulls":3},{"$f":"general!AG96","v":"ketjukäyttöinen - oikea"}]
{"$rows_empty":24}
[{"$nulls":3},{"$f":"general!AG95","v":"ketjukäyttöinen - vasen"}]